fUSD/lending_fUSD_20240523
["ID","MTS","AMOUNT","RATE_DAILY","PERIOD"]
[327780105,1716475212896,500.0,0.00022895,5]
[327780106,1716475213216,500.0,0.00023169,6]
[327780107,1716475213501,289.0,0.00020889,2]
[327780108,1716475213555,636.76,0.00023443,7]
[327780109,1716475215379,200.0,0.000235,2]
[327780110,1716475215916,500.0,0.00022073,2]
[327780111,1716475216333,500.0,0.00022347,3]
[327780112,1716475216984,500.0,0.00022621,4]
[327780113,1716475217249,412.80902214,0.00022895,5]
[327780114,1716475220055,685.89,0.00020889,2]
[327780115,1716475220108,383.29940494,0.00022897,2]
[327780116,1716475220366,500.0,0.00022074,2]
[327780117,1716475220587,500.0,0.00022073,2]
[327780118,1716475220864,500.0,0.00022347,3]
[327780119,1716475220966,500.0,0.00022348,3]
[327780120,1716475221118,500.0,0.00022621,4]
[327780121,1716475221238,500.0,0.00022622,4]
[327780122,1716475221387,500.0,0.00022895,5]
[327780123,1716475221509,500.0,0.00022896,5]
[327780124,1716475221660,500.0,0.00023169,6]
[327780125,1716475221802,500.0,0.0002317,6]
[327780126,1716475221955,500.0,0.00023443,7]
[327780127,1716475222315,500.0,0.00023444,7]
[327780128,1716475222819,857.14,0.00022897,2]
[327780129,1716475223076,857.14,0.00023171,3]
[327780130,1716475223386,857.14,0.00023445,4]
[327780131,1716475223618,501.12,0.00022073,2]
[327780132,1716475223902,501.12,0.00022347,3]
[327780133,1716475224225,501.12,0.00022621,4]
[327780134,1716475224510,501.12,0.00022895,5]
[327780135,1716475224824,501.12,0.00023169,6]
[327780136,1716475225270,501.12,0.00023443,7]
[327780137,1716475227705,620.52,0.00022073,2]
[327780138,1716475227980,620.52,0.00022347,3]
[327780139,1716475228241,620.52,0.00022621,4]
[327780140,1716475228419,5757.0,0.00020889,2]
[327780141,1716475228517,620.52,0.00022895,5]
[327780142,1716475228797,620.52,0.00023169,6]
[327780143,1716475229077,620.52,0.00023443,7]
[327780144,1716475229639,500.0,0.00022073,2]
[327780145,1716475229902,500.0,0.00022347,3]
[327780146,1716475230205,500.0,0.00022621,4]
[327780147,1716475230526,500.0,0.00022895,5]
[327780148,1716475230760,500.0,0.00023169,6]
[327780149,1716475230815,500.0,0.00021999,2]
[327780150,1716475231054,500.0,0.00022273,3]
[327780151,1716475231107,500.0,0.00023443,7]
[327780152,1716475231318,500.0,0.00022547,4]
[327780153,1716475231609,500.0,0.00022821,5]
[327780154,1716475231880,629.34887823,0.00023095,6]
[327780155,1716475233831,1635.0,0.00022073,2]
[327780156,1716475234016,500.0,0.00021999,2]
[327780157,1716475234352,1635.0,0.00022347,3]
[327780158,1716475234416,500.0,0.00022273,3]
[327780159,1716475234493,1635.0,0.00022621,4]
[327780160,1716475234548,3398.03,0.00022897,2]
[327780161,1716475234618,523.48075101,0.00021986,2]
[327780162,1716475234723,1635.0,0.00022895,5]
[327780163,1716475234777,3398.03,0.00023171,3]
[327780164,1716475234961,500.0,0.00022547,4]
[327780165,1716475235041,3398.03,0.00023445,4]
[327780166,1716475235096,1635.0,0.00023169,6]
[327780167,1716475235516,500.0,0.00022821,5]
[327780168,1716475235575,1635.0,0.00023443,7]
[327780169,1716475235647,500.0,0.00023095,6]
[327780170,1716475235867,500.0,0.00023369,7]
[327780171,1716475235978,500.0,0.00022073,2]
[327780172,1716475236253,500.0,0.00022347,3]
[327780173,1716475236857,207.56269663,0.00022621,4]
[327780174,1716475237198,500.0,0.00022073,2]
[327780175,1716475237823,500.0,0.00022347,3]
[327780176,1716475237966,314.85669955,0.00021986,2]
[327780177,1716475238111,510.75131489,0.00022073,2]
[327780178,1716475238168,500.0,0.00022621,4]
[327780179,1716475238413,500.0,0.00022895,5]
[327780180,1716475238681,272.51468989,0.00023169,6]
[327780181,1716475239573,500.0,0.00022073,2]
[327780182,1716475239910,500.0,0.00022347,3]
[327780184,1716475240224,182.55737065,0.00022621,4]
[327780185,1716475240505,500.0,0.00022897,2]
[327780186,1716475240787,500.0,0.00023171,3]
[327780187,1716475241075,393.53042762,0.00023445,4]
[327780188,1716475243519,512.63109431,0.00021986,2]
[327780189,1716475243575,500.0,0.00022897,2]
[327780190,1716475243781,500.0,0.00023171,3]
[327780191,1716475244000,508.74359967,0.00022073,2]
[327780192,1716475244061,500.0,0.00023445,4]
[327780193,1716475245449,508.38460968,0.00022897,2]
[327780194,1716475246518,500.0,0.00022897,2]
[327780195,1716475247077,500.0,0.00023171,3]
[327780196,1716475247158,500.0,0.00023445,4]
[327780197,1716475248039,356.01239291,0.00022073,2]
[327780198,1716475249174,597.17,0.00022074,2]
[327780199,1716475249476,597.17,0.00022348,3]
[327780200,1716475249731,597.17,0.00022622,4]
[327780201,1716475250007,597.17,0.00022896,5]
[327780202,1716475250272,597.17,0.0002317,6]
[327780203,1716475250866,500.0,0.00022073,2]
[327780204,1716475250926,597.17,0.00023444,7]
[327780205,1716475251112,500.0,0.00022347,3]
[327780206,1716475251213,500.0,0.00022897,2]
[327780207,1716475251340,500.0,0.00022073,2]
[327780208,1716475251396,500.0,0.00022621,4]
[327780209,1716475251508,523.34160017,0.00023171,3]
[327780210,1716475251589,520.84,0.00022073,2]
[327780211,1716475251643,500.0,0.00022347,3]
[327780212,1716475251711,465.85870632,0.00022895,5]
[327780213,1716475251849,520.84,0.00022347,3]
[327780214,1716475251925,500.0,0.00022621,4]
[327780215,1716475252106,520.84,0.00022621,4]
[327780216,1716475252228,500.0,0.00022895,5]
[327780217,1716475252526,500.0,0.00023169,6]
[327780218,1716475252705,520.84,0.00022895,5]
[327780219,1716475252843,500.0,0.00023443,7]
[327780220,1716475253006,520.84,0.00023169,6]
[327780221,1716475253358,520.84,0.00023443,7]
[327780222,1716475253959,500.0,0.00022897,2]
[327780223,1716475254255,500.0,0.00023171,3]
[327780224,1716475254551,500.0,0.00023445,4]
[327780225,1716475255560,862.25,0.00021999,2]
[327780226,1716475256100,862.25,0.00022273,3]
[327780227,1716475256188,862.25,0.00022547,4]
[327780228,1716475256418,862.25,0.00022821,5]
[327780229,1716475256534,500.0,0.00021986,2]
[327780230,1716475256799,572.6445169,0.0002226,3]
[327780231,1716475257023,862.25,0.00023095,6]
[327780232,1716475257308,862.25,0.00023369,7]
[327780233,1716475259942,500.0,0.00022073,2]
[327780234,1716475260699,500.0,0.00022074,2]
[327780235,1716475260759,500.0,0.00022347,3]
[327780236,1716475260884,500.0,0.00022348,3]
[327780237,1716475260938,500.0,0.00022621,4]
[327780238,1716475261104,500.0,0.00022895,5]
[327780239,1716475261162,500.0,0.00022622,4]
[327780240,1716475261314,500.0,0.00023169,6]
[327780241,1716475261387,500.0,0.00022896,5]
[327780242,1716475261442,500.0,0.00021986,2]
[327780243,1716475261583,500.0,0.00023443,7]
[327780244,1716475261670,500.0,0.0002317,6]
[327780245,1716475261728,500.0,0.0002226,3]
[327780246,1716475262006,500.0,0.00022534,4]
[327780247,1716475262060,500.0,0.00023444,7]
[327780248,1716475262280,500.0,0.00022808,5]
[327780249,1716475262587,640.64995383,0.00023082,6]
[327780251,1716475265396,500.0,0.00021986,2]
[327780252,1716475265661,500.0,0.0002226,3]
[327780253,1716475265949,643.23679794,0.00022534,4]
[327780255,1716475266478,500.0,0.00022073,2]
[327780256,1716475266551,500.0,0.00022347,3]
[327780257,1716475266806,500.0,0.00022621,4]
[327780258,1716475267074,500.0,0.00022895,5]
[327780260,1716475267699,500.0,0.00023169,6]
[327780261,1716475267977,500.0,0.00023443,7]
[327780265,1716475269146,440.42541376,0.00022897,2]
[327780266,1716475269684,755.64,0.00022073,2]
[327780268,1716475270129,755.64,0.00022347,3]
[327780269,1716475270415,755.64,0.00022621,4]
[327780270,1716475270701,550.58,0.00021986,2]
[327780271,1716475270950,550.58,0.0002226,3]
[327780272,1716475271028,755.64,0.00022895,5]
[327780273,1716475271191,500.0,0.00022073,2]
[327780274,1716475271256,550.58,0.00022534,4]
[327780275,1716475271319,755.64,0.00023169,6]
[327780276,1716475271376,500.0,0.00022073,2]
[327780277,1716475271551,550.58,0.00022808,5]
[327780278,1716475271641,755.64,0.00023443,7]
[327780279,1716475271699,500.0,0.00022347,3]
[327780280,1716475271797,550.58,0.00023082,6]
[327780281,1716475271861,500.0,0.00022347,3]
[327780282,1716475271931,633.50968111,0.00022621,4]
[327780283,1716475272340,500.0,0.00022074,2]
[327780284,1716475272439,574.78913924,0.00022621,4]
[327780285,1716475272511,550.58,0.00023356,7]
[327780286,1716475272732,500.0,0.00022348,3]
[327780287,1716475272912,500.0,0.00022622,4]
[327780288,1716475273383,500.0,0.00022897,2]
[327780289,1716475273447,500.0,0.00022897,2]
[327780290,1716475273606,500.0,0.00022896,5]
[327780291,1716475273820,500.0,0.00021986,2]
[327780292,1716475273882,500.0,0.0002317,6]
[327780293,1716475274015,500.0,0.00023171,3]
[327780294,1716475274085,500.0,0.00022073,2]
[327780295,1716475274151,500.0,0.0002226,3]
[327780296,1716475274256,258.22856271,0.00023171,3]
[327780297,1716475274436,500.0,0.00023445,4]
[327780298,1716475274495,500.0,0.00023444,7]
[327780299,1716475274559,500.0,0.00022534,4]
[327780300,1716475274726,500.0,0.00022347,3]
[327780301,1716475274807,500.0,0.00022808,5]
[327780302,1716475274871,500.0,0.00021999,2]
[327780303,1716475275101,500.0,0.00023082,6]
[327780304,1716475275160,500.0,0.00022273,3]
[327780305,1716475275217,500.0,0.00022073,2]
[327780306,1716475275329,500.0,0.00022621,4]
[327780307,1716475275414,500.0,0.00022547,4]
[327780308,1716475275473,500.0,0.00022347,3]
[327780309,1716475275675,500.0,0.00022821,5]
[327780310,1716475275732,500.0,0.00022621,4]
[327780311,1716475275900,500.0,0.00023356,7]
[327780312,1716475275965,500.0,0.00022895,5]
[327780313,1716475276021,500.0,0.00023095,6]
[327780314,1716475276210,500.0,0.00023169,6]
[327780315,1716475276276,500.0,0.00022895,5]
[327780316,1716475276971,500.0,0.00023369,7]
[327780317,1716475277142,500.0,0.00023443,7]
[327780318,1716475277206,500.0,0.00023169,6]
[327780319,1716475277359,500.0,0.00023443,7]
[327780320,1716475279580,500.0,0.00022073,2]
[327780321,1716475279838,500.0,0.00022347,3]
[327780322,1716475280168,500.0,0.00022621,4]
[327780323,1716475280428,500.0,0.00022895,5]
[327780324,1716475280715,500.0,0.00023169,6]
[327780325,1716475280793,500.0,0.00022074,2]
[327780326,1716475281013,500.0,0.00023443,7]
[327780327,1716475281147,500.0,0.00022348,3]
[327780328,1716475281368,500.0,0.00022622,4]
[327780329,1716475281624,500.0,0.00022897,2]
[327780330,1716475281903,500.0,0.00021999,2]
[327780331,1716475281960,500.0,0.00023171,3]
[327780332,1716475282046,515.23323717,0.00022073,2]
[327780333,1716475282147,500.0,0.00022896,5]
[327780334,1716475282202,500.0,0.00023445,4]
[327780335,1716475282252,500.0,0.00022273,3]
[327780336,1716475282301,802.34337686,0.000219,2]
[327780337,1716475282380,500.0,0.0002317,6]
[327780338,1716475282480,500.0,0.00022547,4]
[327780339,1716475282596,500.0,0.00022073,2]
[327780340,1716475282757,500.0,0.00022821,5]
[327780341,1716475282971,500.0,0.00023444,7]
[327780342,1716475283027,500.0,0.00023095,6]
[327780343,1716475283190,500.0,0.00022347,3]
[327780344,1716475283293,500.0,0.00023369,7]
[327780345,1716475283463,500.0,0.00022621,4]
[327780346,1716475283513,500.0,0.00021986,2]
[327780347,1716475283753,500.0,0.0002226,3]
[327780348,1716475284024,500.0,0.00022534,4]
[327780349,1716475284279,500.0,0.00022895,5]
[327780350,1716475284346,946.3,0.00022073,2]
[327780351,1716475284428,500.0,0.00023169,6]
[327780352,1716475284632,500.0,0.00023443,7]
[327780353,1716475284687,190.99524269,0.00022808,5]
[327780354,1716475284777,946.3,0.00022347,3]
[327780355,1716475285296,946.3,0.00022621,4]
[327780356,1716475285566,946.3,0.00022895,5]
[327780357,1716475286214,946.3,0.00023169,6]
[327780358,1716475286490,946.3,0.00023443,7]
[327780359,1716475286814,2800.06,0.00022073,2]
[327780360,1716475287238,2800.06,0.00022347,3]
[327780361,1716475287383,2800.06,0.00022621,4]
[327780362,1716475287442,500.0,0.00021999,2]
[327780363,1716475287659,2800.06,0.00022895,5]
[327780364,1716475287724,566.43371626,0.00022273,3]
[327780365,1716475287809,155.0,0.00023,2]
[327780366,1716475287940,2800.06,0.00023169,6]
[327780367,1716475288189,2800.06,0.00023443,7]
[327780368,1716475288742,500.0,0.00022897,2]
[327780369,1716475289013,432.59733135,0.00023171,3]
[327780370,1716475289221,500.0,0.00022074,2]
[327780371,1716475289532,500.0,0.00022348,3]
[327780372,1716475289783,500.0,0.00021986,2]
[327780373,1716475289832,500.0,0.00022622,4]
[327780374,1716475290058,500.0,0.0002226,3]
[327780375,1716475290122,500.0,0.00022896,5]
[327780376,1716475290281,500.0,0.00022073,2]
[327780377,1716475290336,500.0,0.00022534,4]
[327780378,1716475290407,500.0,0.0002317,6]
[327780379,1716475290550,373.48932441,0.00022347,3]
[327780380,1716475290607,205.37476691,0.00022808,5]
[327780381,1716475290933,500.0,0.00023444,7]
[327780382,1716475291596,500.0,0.00022897,2]
[327780383,1716475291878,500.0,0.00023171,3]
[327780384,1716475292144,500.0,0.00023445,4]
[327780385,1716475293186,510.68895763,0.00021986,2]
[327780386,1716475294198,3611.61,0.00022649,2]
[327780387,1716475295619,500.0,0.00022073,2]
[327780388,1716475295890,360.30852055,0.00022347,3]
[327780389,1716475295943,500.0,0.00021986,2]
[327780390,1716475296193,500.0,0.0002226,3]
[327780391,1716475296475,559.73039016,0.00022534,4]
[327780392,1716475298650,500.0,0.00022073,2]
[327780393,1716475298924,500.0,0.00022347,3]
[327780394,1716475299200,500.0,0.00022621,4]
[327780395,1716475299484,500.0,0.00022895,5]
[327780396,1716475299778,500.0,0.00023169,6]
[327780397,1716475300336,500.0,0.00023443,7]
[327780398,1716475300740,514.73372716,0.00021986,2]
[327780399,1716475301093,500.0,0.00022897,2]
[327780400,1716475301295,500.0,0.00022074,2]
[327780401,1716475301366,500.0,0.00023171,3]
[327780402,1716475301629,500.0,0.00022348,3]
[327780403,1716475301754,500.0,0.00023445,4]
[327780404,1716475302793,500.0,0.00022622,4]
[327780405,1716475302892,500.0,0.00022896,5]
[327780406,1716475302948,827.49,0.00021999,2]
[327780407,1716475303777,500.0,0.0002317,6]
[327780408,1716475303831,827.49,0.00022273,3]
[327780409,1716475303928,400.27431133,0.00022073,2]
[327780410,1716475303995,827.49,0.00022547,4]
[327780411,1716475304100,719.5,0.00021986,2]
[327780412,1716475304239,827.49,0.00022821,5]
[327780413,1716475304357,719.5,0.00022738,3]
[327780414,1716475304543,827.49,0.00023095,6]
[327780415,1716475304829,827.49,0.00023369,7]
[327780416,1716475304974,719.5,0.00022994,4]
[327780417,1716475305251,719.5,0.00023443,5]
[327780418,1716475305484,1551.73,0.00021986,2]
[327780419,1716475305661,500.0,0.00022073,2]
[327780420,1716475305840,1551.73,0.0002226,3]
[327780421,1716475305940,531.11859392,0.00022347,3]
[327780422,1716475306051,500.0,0.00022897,2]
[327780423,1716475306128,1551.73,0.00022534,4]
[327780424,1716475306326,500.0,0.00023171,3]
[327780425,1716475306387,1551.73,0.00022808,5]
[327780426,1716475306590,9156.94527158,0.00022,2]
[327780427,1716475306650,500.0,0.00023445,4]
[327780428,1716475306726,500.0,0.00022074,2]
[327780429,1716475306785,320.40777772,0.00022073,2]
[327780430,1716475306991,1551.73,0.00023082,6]
[327780431,1716475307270,1551.73,0.00023356,7]
[327780432,1716475307341,500.0,0.00022348,3]
[327780433,1716475307896,500.0,0.00022622,4]
[327780434,1716475307990,500.0,0.00022896,5]
[327780435,1716475308132,500.0,0.0002317,6]
[327780436,1716475308429,500.0,0.00023444,7]
[327780437,1716475311069,500.0,0.00022073,2]
[327780438,1716475311355,500.0,0.00022347,3]
[327780439,1716475312275,500.0,0.00022621,4]
[327780440,1716475312336,557.31,0.00022074,2]
[327780441,1716475312417,557.31,0.00022348,3]
[327780442,1716475312471,500.0,0.00022895,5]
[327780443,1716475312521,500.0,0.00022073,2]
[327780444,1716475312673,557.31,0.00022622,4]
[327780445,1716475312763,500.0,0.00023169,6]
[327780446,1716475312947,561.8204731,0.00022347,3]
[327780447,1716475313015,557.31,0.00022896,5]
[327780448,1716475313072,500.0,0.00023443,7]
[327780449,1716475313279,821.99,0.00021999,2]
[327780450,1716475313328,557.31,0.0002317,6]
[327780451,1716475313589,557.31,0.00023444,7]
[327780452,1716475313646,821.99,0.00022273,3]
[327780453,1716475313745,572.13,0.00022073,2]
[327780454,1716475313912,821.99,0.00022547,4]
[327780455,1716475314183,821.99,0.00022821,5]
[327780456,1716475314237,572.13,0.00022347,3]
[327780457,1716475314518,572.13,0.00022621,4]
[327780458,1716475314825,572.13,0.00022895,5]
[327780459,1716475314886,821.99,0.00023095,6]
[327780460,1716475315143,572.13,0.00023169,6]
[327780461,1716475315458,821.99,0.00023369,7]
[327780462,1716475315748,572.13,0.00023443,7]
[327780463,1716475316082,500.0,0.00022897,2]
[327780464,1716475316374,500.0,0.00022073,2]
[327780465,1716475316424,500.0,0.00023171,3]
[327780466,1716475316643,500.0,0.00022347,3]
[327780467,1716475316701,500.0,0.00023445,4]
[327780468,1716475316936,500.0,0.00022621,4]
[327780469,1716475317229,500.0,0.00022895,5]
[327780470,1716475317498,500.0,0.00023169,6]
[327780471,1716475318153,635.98991257,0.00023443,7]
[327780472,1716475319549,500.0,0.00022073,2]
[327780474,1716475319834,500.0,0.00022073,2]
[327780478,1716475319930,500.0,0.00022347,3]
[327780482,1716475320070,500.0,0.00022347,3]
[327780483,1716475320137,420.12623743,0.00022621,4]
[327780484,1716475320328,500.0,0.00022621,4]
[327780485,1716475320593,500.0,0.00022895,5]
[327780486,1716475320859,500.0,0.00023169,6]
[327780487,1716475321064,500.0,0.00022073,2]
[327780488,1716475321124,232.34064395,0.00023443,7]
[327780489,1716475321378,500.0,0.00022347,3]
[327780490,1716475321671,500.0,0.00022621,4]
[327780491,1716475321961,500.0,0.00022895,5]
[327780492,1716475322237,500.0,0.00023169,6]
[327780493,1716475322511,500.0,0.00023443,7]
[327780494,1716475322876,500.0,0.00022073,2]
[327780495,1716475323162,500.0,0.00022347,3]
[327780496,1716475323427,500.0,0.00022621,4]
[327780497,1716475323745,500.0,0.00022895,5]
[327780498,1716475323807,500.0,0.00021999,2]
[327780499,1716475324084,500.0,0.00022273,3]
[327780500,1716475324133,500.0,0.00022073,2]
[327780501,1716475324338,500.0,0.00023169,6]
[327780502,1716475324392,500.0,0.00022547,4]
[327780503,1716475324625,500.0,0.00022821,5]
[327780504,1716475324681,500.0,0.00023443,7]
[327780505,1716475324732,232.89393829,0.00022347,3]
[327780506,1716475324787,1026.16129584,0.00022073,2]
[327780507,1716475324894,500.0,0.00023095,6]
[327780508,1716475324943,900.8,0.00022074,2]
[327780509,1716475325177,500.0,0.00023369,7]
[327780510,1716475325229,900.8,0.00022348,3]
[327780511,1716475325498,900.8,0.00022622,4]
[327780512,1716475325924,254.77593032,0.00022897,2]
[327780513,1716475326116,900.8,0.00022896,5]
[327780514,1716475326372,500.0,0.00022073,2]
[327780515,1716475326421,900.8,0.0002317,6]
[327780516,1716475326640,500.0,0.00022347,3]
[327780517,1716475326691,900.8,0.00023444,7]
[327780518,1716475326946,500.0,0.00022621,4]
[327780519,1716475327118,500.0,0.00022073,2]
[327780520,1716475327212,500.0,0.00022895,5]
[327780521,1716475327427,500.0,0.00022347,3]
[327780522,1716475327528,291.76383174,0.00023169,6]
[327780523,1716475327708,500.0,0.00022621,4]
[327780524,1716475328014,500.0,0.00022895,5]
[327780525,1716475328430,500.0,0.00023169,6]
[327780526,1716475328583,500.0,0.00023443,7]
[327780527,1716475328741,344.22913347,0.00022897,2]
[327780528,1716475331063,500.0,0.00022073,2]
[327780529,1716475331121,500.0,0.00022073,2]
[327780530,1716475331324,500.0,0.00022347,3]
[327780531,1716475331394,500.0,0.00022347,3]
[327780532,1716475331669,500.0,0.00022621,4]
[327780533,1716475331972,500.0,0.00022895,5]
[327780534,1716475332026,500.0,0.00022621,4]
[327780535,1716475332110,500.0,0.00021986,2]
[327780536,1716475332269,500.0,0.00023169,6]
[327780537,1716475332319,500.0,0.00022895,5]
[327780538,1716475332416,511.14140892,0.0002226,3]
[327780539,1716475332522,500.0,0.00022073,2]
[327780540,1716475332573,500.0,0.00023443,7]
[327780541,1716475332816,500.0,0.00022347,3]
[327780542,1716475333091,500.0,0.00022621,4]
[327780543,1716475333154,500.0,0.00021999,2]
[327780544,1716475333243,500.0,0.00023169,6]
[327780545,1716475333400,500.0,0.00022895,5]
[327780546,1716475333450,500.0,0.00022273,3]
[327780547,1716475333661,500.0,0.00023169,6]
[327780548,1716475333830,500.0,0.00022547,4]
[327780549,1716475333930,500.0,0.00023443,7]
[327780550,1716475333989,580.33719258,0.00023443,7]
[327780551,1716475334042,500.0,0.00022073,2]
[327780552,1716475334128,500.0,0.00022821,5]
[327780553,1716475334398,500.0,0.00022347,3]
[327780554,1716475334461,500.0,0.00023095,6]
[327780555,1716475334684,500.0,0.00022621,4]
[327780556,1716475334762,500.0,0.00023369,7]
[327780557,1716475334976,500.0,0.00022895,5]
[327780558,1716475335195,780.43,0.00022074,2]
[327780559,1716475335259,616.96806806,0.00023169,6]
[327780560,1716475335471,780.43,0.00022348,3]
[327780561,1716475336115,500.0,0.00022897,2]
[327780562,1716475336349,500.0,0.00023171,3]
[327780563,1716475337156,500.0,0.00023445,4]
[327780565,1716475338292,507.73611449,0.00022073,2]
[327780566,1716475338820,780.43,0.00022622,4]
[327780567,1716475338870,734.82,0.00021999,2]
[327780568,1716475338939,780.43,0.00022896,5]
[327780569,1716475339062,621.18623685,0.00022897,2]
[327780570,1716475339328,734.82,0.00022273,3]
[327780571,1716475339378,500.0,0.00022073,2]
[327780572,1716475339425,160.107484,0.00022282,2]
[327780573,1716475339598,780.43,0.0002317,6]
[327780574,1716475339644,734.82,0.00022547,4]
[327780575,1716475339692,621.18623685,0.0002319,2]
[327780576,1716475339741,374.23048879,0.00022347,3]
[327780577,1716475339788,152.96549235,0.00023017,2]
[327780579,1716475339892,780.43,0.00023444,7]
[327780580,1716475339941,154.66364069,0.0002274,2]
[327780581,1716475340238,734.82,0.00022821,5]
[327780582,1716475340389,500.0,0.00022073,2]
[327780583,1716475340440,157.855,0.00023241,2]
[327780584,1716475340544,734.82,0.00023095,6]
[327780585,1716475340872,734.82,0.00023369,7]
[327780586,1716475340954,154.66364069,0.00022911,2]
[327780587,1716475341036,500.0,0.00022347,3]
[327780588,1716475341087,621.18623685,0.00023203,2]
[327780589,1716475341292,160.107484,0.00023148,2]
[327780590,1716475341466,500.0,0.00022621,4]
[327780591,1716475341750,500.0,0.00022895,5]
[327780592,1716475342017,500.0,0.00022073,2]
[327780593,1716475342069,500.0,0.00023169,6]
[327780594,1716475342298,500.0,0.00023443,7]
[327780595,1716475342480,500.0,0.00021986,2]
[327780596,1716475342532,263.85403318,0.00022392,2]
[327780597,1716475342671,153.55433201,0.00022701,2]
[327780598,1716475342780,500.0,0.00022347,3]
[327780599,1716475342831,277.80304283,0.0002226,3]
[327780600,1716475343002,500.0,0.00022621,4]
[327780601,1716475343292,500.0,0.00022895,5]
[327780603,1716475343608,500.0,0.00023169,6]
[327780605,1716475343911,500.0,0.00023443,7]
[327780606,1716475346213,500.0,0.00022073,2]
[327780607,1716475346373,512.93642306,0.00022073,2]
[327780608,1716475346508,500.0,0.00022347,3]
[327780609,1716475346583,166.66666667,0.00022675,2]
[327780610,1716475346738,152.73750917,0.00022217,2]
[327780611,1716475346800,500.0,0.00022621,4]
[327780612,1716475346883,500.0,0.00022073,2]
[327780613,1716475346937,153.12954135,0.00022297,2]
[327780614,1716475347071,500.0,0.00022895,5]
[327780615,1716475347131,500.0,0.00022073,2]
[327780616,1716475347188,350.52417925,0.00022206,2]
[327780617,1716475347240,500.0,0.00022347,3]
[327780618,1716475347307,152.73750917,0.00022429,2]
[327780619,1716475347379,500.0,0.00023169,6]
[327780620,1716475347436,529.73305075,0.00022347,3]
[327780621,1716475347539,500.0,0.00022621,4]
[327780622,1716475347595,589.82624832,0.00021986,2]
[327780623,1716475347755,500.0,0.00023443,7]